bitfinex-derivatives/quotes_ETHF0:USTF0_20240907
["timestamp","ask_amount","ask_price","bid_price","bid_amount"]
[1725681806942,0.4627952,2240.8,2240.7,0.4464]
[1725681807146,0.4627952,2240.8,2240.6,0.4464]
[1725681807453,0.44638,2240.8,2240.7,0.4464]
[1725681807641,0.46279523,2240.8,2240.7,0.4464]
[1725681809247,0.46279523,2240.8,2240.6,0.4464]
[1725681809453,0.44638,2240.8,2240.6,0.4464]
[1725681810539,0.44638,2240.8,2240.7,0.4464]
[1725681810738,0.46279522,2240.8,2240.7,0.4464]
[1725681811376,0.44638,2240.8,2240.7,0.4464]
[1725681811654,0.46279505,2240.8,2240.7,0.4464]
[1725681812356,0.4464,2240.7,2240.6,0.44641]
[1725681812541,0.8367,2240.7,2240.6,0.44641]
[1725681816755,0.8367,2240.7,2240.5,1.24273]
[1725681816954,0.8367,2240.7,2240.5,0.7963]
[1725681818059,0.8367,2240.7,2240.6,0.44642]
[1725681818558,0.44639,2240.8,2240.7,0.4464]
[1725681819254,0.44639,2240.8,2240.5,0.7963]
[1725681819255,0.44639,2240.8,2240.6,0.4464]
[1725681821751,0.44639,2240.8,2240.7,0.4464]
[1725681821953,0.44639,2240.8,2240.6,0.44641]
[1725681822458,0.44639,2240.8,2240.7,0.4464]
[1725681822646,0.7664,2240.9,2240.7,0.44638]
[1725681822647,1.21277,2240.9,2240.7,0.44638]
[1725681823146,0.44638,2240.8,2240.7,0.44638]
[1725681823756,1.21277,2240.9,2240.7,0.44638]
[1725681824095,0.44638,2240.8,2240.7,0.44638]
[1725681824858,1.21276,2240.9,2240.8,0.44638]
[1725681825058,1.21276,2240.9,2240.5,0.7963]
[1725681825754,0.44638,2240.8,2240.7,0.44639]
[1725681827052,0.44641,2240.7,2240.5,0.7963]
[1725681827458,0.3832,2240.6,2240.5,1.24274]
[1725681829055,0.3832,2240.6,2240.5,0.44644]
[1725681833263,0.82962,2240.6,2240.5,0.44644]
[1725681833565,0.3832,2240.6,2240.5,0.44644]
[1725681834769,0.39961656,2240.6,2240.5,0.44644]
[1725681835367,0.3832,2240.6,2240.5,0.44644]
[1725681837461,5.09012,2240.9,2240.6,0.4464]
[1725681837462,0.44639,2240.8,2240.6,0.4464]
[1725681837666,0.01641559,2240.7,2240.6,0.4464]
[1725681837976,0.46281559,2240.7,2240.6,0.4464]
[1725681839361,0.46281559,2240.7,2240.4,1.16655802]
[1725681839362,0.46281559,2240.7,2240.5,0.44642]
[1725681839562,0.4464,2240.7,2240.6,0.44642]
[1725681839768,0.46281618,2240.7,2240.6,0.44642]
[1725681839962,0.46281618,2240.7,2240.5,0.44642]
[1725681840167,0.4464,2240.7,2240.5,0.44642]
[1725681842066,0.4464,2240.7,2240.5,1.61297802]
[1725681842266,0.01641589,2240.6,2240.5,0.44642]
[1725681842672,0.46283589,2240.6,2240.5,0.44642]
[1725681842864,0.44642,2240.6,2240.5,0.44642]
[1725681843066,0.44641,2240.7,2240.5,0.44642]
[1725681844661,0.44642,2240.6,2240.5,0.44642]
[1725681844867,0.44641,2240.7,2240.6,0.44642]
[1725681851868,6.62747058,2240.8,2240.4,1.16655802]
[1725681852177,1.11615,2240.4,2240.1,1.16655802]
[1725681852470,6.00718372,2240.3,2240.1,0.44652]
[1725681852672,5.56069372,2240.3,2240.0,9.90350462]
[1725681852968,6.00718372,2240.3,2240.1,0.44652]
[1725681853370,6.00718372,2240.3,2240.0,9.90350462]
[1725681854968,6.00718372,2240.3,2240.0,8.7369466]
[1725681855666,0.4465,2240.2,2240.0,8.7369466]
[1725681855871,0.825,2240.2,2240.0,8.7369466]
[1725681856269,0.825,2240.2,2240.0,8.2904266]
[1725681856463,0.44652,2240.1,2240.0,8.2904266]
[1725681856787,0.44652,2240.1,2239.7,1.16655802]
[1725681856788,0.44656,2239.9,2239.7,1.16655802]
[1725681856966,0.44656,2239.9,2239.6,6.40905802]
[1725681857163,0.44656,2239.9,2239.6,6.85565802]
[1725681857479,0.44656,2239.9,2239.6,5.6891]
[1725681857668,5.61416,2240.0,2239.6,0.7447]
[1725681857870,0.44659,2239.7,2239.6,0.365]
[1725681858077,0.22108729,2239.7,2239.4,0.44664]
[1725681858375,0.22108729,2239.7,2239.5,0.365]
[1725681858571,0.66769729,2239.7,2239.5,0.365]
[1725681858780,0.44661,2239.6,2239.5,0.365]
[1725681858975,0.66769729,2239.7,2239.5,0.365]
[1725681859478,0.44661,2239.6,2239.5,0.365]
[1725681859675,0.66769729,2239.7,2239.5,0.365]
[1725681861581,0.44661,2239.6,2239.5,0.365]
[1725681862693,0.66769729,2239.7,2239.5,0.365]
[1725681882090,0.44661,2239.7,2239.5,0.81163]
[1725681883081,0.44661,2239.7,2239.5,0.365]
[1725681883478,0.4466,2239.7,2239.5,0.365]
[1725681884180,3.5963,2239.9,2239.5,3.5728]
[1725681884494,3.2078,2239.9,2239.7,0.44659]
[1725681884791,3.2078,2239.9,2239.8,0.381]
[1725681884990,3.2078,2239.9,2239.8,0.7559]
[1725681887197,3.2078,2239.9,2239.8,1.20248]
[1725681887389,3.2078,2239.9,2239.8,0.7559]
[1725681889394,4.42833,2240.1,2239.8,0.7559]
[1725681889893,0.44654,2240.0,2239.8,0.7559]
[1725681894894,0.44656,2239.9,2239.8,0.7559]
[1725681895415,3.9818,2240.1,2239.8,0.7559]
[1725681895416,0.44655,2240.0,2239.8,0.7559]
[1725681898903,0.44655,2240.0,2239.8,1.20248]
[1725681899202,0.44655,2240.0,2239.8,0.7559]
[1725681899804,0.44656,2239.9,2239.8,0.7559]
[1725681900506,0.44655,2240.0,2239.8,0.7559]
[1725681900901,1.22053,2240.1,2239.8,2.36901802]
[1725681901348,1.22053,2240.1,2239.9,0.44655]
[1725681901806,0.83251,2240.2,2239.9,0.44655]
[1725681901997,0.83251,2240.2,2240.0,0.3825]
[1725681902198,0.01642044,2240.1,2240.0,0.3825]
[1725681902400,0.83251,2240.2,2240.0,0.3825]
[1725681902605,0.01642058,2240.1,2240.0,0.3825]
[1725681902804,0.01642062,2240.1,2239.6,1.16655802]
[1725681902996,0.44659,2239.8,2239.6,1.52745802]
[1725681903207,0.44659,2239.8,2239.6,0.3609]
[1725681903501,0.3958,2239.7,2239.6,0.80751]
[1725681908410,0.3981,2239.8,2239.6,0.80751]
[1725681908709,0.44657,2239.9,2239.7,0.44659]
[1725681909015,1.60535,2240.0,2239.7,0.44659]
[1725681909410,1.60535,2240.0,2239.6,1.52745802]
[1725681909411,1.60535,2240.0,2239.8,0.44657]
[1725681910310,1.60535,2240.0,2239.8,1.61312802]
[1725681910505,0.7607,2240.0,2239.8,1.16655802]
[1725681910722,0.7607,2240.0,2239.8,1.61311802]
[1725681911211,0.7607,2240.0,2239.9,0.44656]
[1725681911714,0.7607,2240.0,2239.8,1.61311802]
[1725681912430,0.3606,2240.0,2239.8,1.61311802]
[1725681913113,0.3606,2240.0,2239.9,0.44656]
[1725681918221,0.3623,2240.1,2239.9,0.44656]
[1725681919430,0.80883,2240.1,2239.8,0.44657]
[1725681919927,0.44654,2240.0,2239.8,0.44657]
[1725681920322,0.3889,2239.9,2239.8,0.44657]
[1725681923886,0.80883,2240.1,2239.9,0.44655]
[1725681924028,1.19863,2240.1,2240.0,0.3777]
[1725681925624,1.21505081,2240.1,2240.0,0.3777]
[1725681926020,0.76852081,2240.1,2240.0,0.82424]
[1725681926229,0.76852081,2240.1,2240.0,1.22334]
[1725681927050,0.44655,2240.0,2239.8,1.61312802]
[1725681927443,0.44656,2239.9,2239.8,1.16655802]
[1725681927630,0.44656,2239.9,2239.7,1.61313802]
[1725681927932,0.7732,2239.8,2239.7,1.61314802]
[1725681928145,0.7732,2239.8,2239.7,3.40093046]
[1725681928635,1.21978,2239.8,2239.7,3.40094899]
[1725681930632,1.44686379,2239.8,2239.7,3.9799882]
[1725681931727,1.44686379,2239.8,2239.7,5.15201765]
[1725681932233,0.44659,2239.7,2239.6,1.17202945]
[1725681932535,0.44661,2239.6,2239.5,0.3716]
[1725681937236,0.44665,2239.5,2239.3,1.20767]
[1725681937430,0.81755,2239.5,2239.3,1.20627]
[1725681938034,0.3709,2239.5,2239.4,0.44665]
[1725681939141,0.44662,2239.6,2239.4,0.44665]
[1725681940537,0.44662,2239.6,2239.4,1.61867945]
[1725681940736,0.44663,2239.5,2239.4,1.17202945]
[1725681942139,0.44665,2239.4,2239.3,3.67722668]
[1725681942436,0.44665,2239.4,2239.3,5.91195428]
[1725681942642,0.44665,2239.4,2239.3,4.16635705]
[1725681942838,0.44665,2239.4,2239.3,5.91195428]
[1725681943045,0.44665,2239.4,2239.3,4.16635705]
[1725681944067,0.44665,2239.4,2239.3,4.73992483]
[1725681944353,0.44662,2239.6,2239.4,0.44664]
[1725681944540,0.44662,2239.6,2239.4,1.61713157]
[1725681945850,0.44662,2239.6,2239.4,0.44664]
[1725681946130,0.44663,2239.5,2239.4,0.44664]
[1725681946252,0.44663,2239.5,2239.4,1.17049157]
[1725681947148,0.44663,2239.5,2239.3,4.1223488]
[1725681947350,0.7524,2239.7,2239.4,1.61714157]
[1725681947646,2.0424,2239.7,2239.3,3.6756888]
[1725681947851,0.44665,2239.4,2239.3,0.7596]
[1725681952344,0.44665,2239.4,2239.3,0.3605]
[1725681955859,0.44664,2239.5,2239.3,0.80717]
[1725681957650,8.38756215,2239.6,2239.4,0.44665]
[1725681957853,8.83418215,2239.6,2239.5,0.762]
[1725681961162,8.83417215,2239.6,2239.5,0.762]
[1725681962959,8.83417215,2239.6,2239.5,0.3671]
[1725681964568,5.62637215,2239.6,2239.5,0.3671]
[1725681966664,0.7524,2239.7,2239.5,0.3671]
[1725681966665,4.0183,2239.7,2239.5,0.81373]
[1725681966867,3.5717,2239.7,2239.5,0.81372]
[1725681967076,4.01829,2239.7,2239.6,0.3729]
[1725681968574,0.81049,2239.7,2239.6,0.3729]
[1725681973378,0.3968,2239.8,2239.6,0.3729]
[1725681973670,0.3968,2239.8,2239.7,0.44659]
[1725681974984,2.12076,2239.9,2239.7,0.44659]
[1725681975271,2.48836,2239.9,2239.7,0.44659]
[1725681975681,0.66964843,2239.8,2239.6,2.3530472]
[1725681976380,0.394,2239.7,2239.6,2.3530472]
[1725681976676,0.394,2239.7,2239.6,1.9895472]
[1725681977681,0.394,2239.7,2239.6,0.8195]
[1725681980577,2.10416,2239.9,2239.7,0.44659]
[1725681983473,1.6576,2239.9,2239.8,0.44658]
[1725681983674,2.10416,2239.9,2239.8,0.44658]
[1725681983969,0.3676,2239.9,2239.8,0.44658]
[1725681986882,1.14875963,2240.3,2239.8,7.6726]
[1725681987097,1.14875963,2240.3,2240.2,0.4465]
[1725681987382,0.7381,2240.6,2240.4,0.44645]
[1725681987685,1.1038,2240.6,2240.4,0.44645]
[1725681987876,1.1038,2240.6,2240.5,0.3684]
[1725681988077,1.12021757,2240.6,2240.5,0.81484]
[1725681988477,1.1038,2240.6,2240.5,0.81484]
[1725681989279,1.29,2240.8,2240.6,0.44641]
[1725681989473,5.6157,2240.9,2240.5,0.3684]
[1725681989674,5.6157,2240.9,2240.7,0.44638]
[1725681990275,5.6157,2240.9,2240.8,0.44638]
[1725681990579,5.63211474,2240.9,2240.8,0.44638]
[1725681990777,5.63211474,2240.9,2240.7,0.44638]
[1725681991088,1.14875963,2241.2,2240.7,1.29]
[1725681991296,1.14875963,2241.2,2241.1,0.44632]
[1725681991577,1.1422,2241.4,2241.2,0.44629]
[1725681991779,0.3757,2241.4,2241.2,0.44629]
[1725681991975,1.29,2241.5,2241.2,0.44629]
[1725681992188,1.29,2241.5,2241.3,0.3788]
[1725681993973,1.73624,2241.5,2241.3,0.3788]
[1725681994490,1.73624,2241.5,2241.1,0.4463]
[1725681994491,1.73624,2241.5,2241.1,0.8187]
[1725681996575,0.44626,2241.4,2241.1,0.8187]
[1725681997687,0.44626,2241.4,2241.2,0.4463]
[1725681998380,0.66922008,2241.4,2241.2,0.4463]
[1725682000390,0.66922008,2241.4,2241.1,0.8187]
[1725682000690,0.3874,2241.3,2241.1,0.8187]
[1725682000896,0.3874,2241.3,2241.2,0.4463]
[1725682001083,0.3874,2241.3,2241.1,0.3724]
[1725682001084,0.3874,2241.3,2241.1,0.8187]
[1725682002684,4.4978,2241.5,2241.1,0.3724]
[1725682002685,3.2078,2241.5,2241.1,0.3724]
[1725682003051,0.94867884,2242.0,2241.4,1.29]
[1725682003290,0.50253884,2242.0,2241.8,0.44617]
[1725682003792,0.94867884,2242.0,2241.8,0.44617]
[1725682004093,0.44614,2242.0,2241.8,0.44617]
[1725682006295,8.22818309,2241.9,2241.5,0.3952]
[1725682006497,0.4462,2241.7,2241.5,0.84143]
[1725682006789,0.44619,2241.8,2241.6,0.44622]
[1725682007184,0.4462,2241.7,2241.6,0.44622]
[1725682007384,0.44619,2241.8,2241.6,0.44622]
[1725682008382,0.4462,2241.7,2241.6,0.44622]
[1725682008694,0.4462,2241.7,2241.5,0.84142]
[1725682009893,0.4462,2241.7,2241.6,0.44622]
[1725682010203,0.44619,2241.8,2241.6,0.44622]
[1725682010490,0.44618,2241.8,2241.6,0.44622]
[1725682010682,0.386,2241.7,2241.6,0.44622]
[1725682010885,0.8322,2241.7,2241.6,0.44622]
[1725682011599,0.8322,2241.7,2241.5,0.3952]
[1725682011793,0.386,2241.7,2241.6,0.44622]
[1725682013293,0.3655,2242.1,2241.6,0.44622]
[1725682013294,1.59484963,2242.3,2242.1,0.44612]
[1725682013494,0.44611,2242.2,2242.0,0.44613]
[1725682013693,0.44611,2242.2,2242.1,0.3915]
[1725682014394,0.44611,2242.2,2242.1,0.83762]
[1725682014795,0.44611,2242.2,2242.1,0.3915]
[1725682015098,0.44609,2242.3,2242.1,0.83762]
[1725682015397,0.4461,2242.2,2242.1,0.3915]
[1725682015794,0.4461,2242.2,2242.1,0.83762]
[1725682016017,5.3359668,2242.3,2242.1,0.83762]
[1725682017198,0.4461,2242.2,2242.1,0.83762]
[1725682019393,0.4461,2242.2,2241.8,0.3612]
[1725682019394,6.1798768,2242.3,2241.8,0.3612]
[1725682019604,6.1798768,2242.3,2241.7,3.6001]
[1725682019605,0.44617,2241.9,2241.7,0.82569]
[1725682019894,3.65398,2241.8,2241.7,0.3795]
[1725682020096,3.2078,2241.8,2241.7,0.8257]
[1725682020295,4.03827,2241.9,2241.8,0.44618]
[1725682020799,3.5921,2241.9,2241.8,0.44618]
[1725682021099,0.3843,2241.9,2241.8,0.44618]
[1725682021603,0.83046,2241.9,2241.8,0.44618]
[1725682021804,0.44616,2241.9,2241.8,0.44618]
[1725682022100,0.44616,2241.9,2241.7,0.82568]
[1725682022490,3.2078,2242.0,2241.6,1.29]
[1725682022491,0.44618,2241.8,2241.6,1.7362]
[1725682022688,0.3688,2241.7,2241.6,1.7362]
[1725682024199,5.20902807,2241.9,2241.6,1.29]
[1725682024496,8.78562807,2241.9,2241.6,1.29]
[1725682024694,8.78562807,2241.9,2241.7,0.44619]
[1725682025389,0.44618,2241.8,2241.6,1.7362]
[1725682025595,0.44618,2241.8,2241.7,0.4462]
[1725682026096,8.78562807,2241.9,2241.7,0.4462]
[1725682026697,5.57782807,2241.9,2241.7,0.4462]
[1725682026901,8.78562807,2241.9,2241.7,0.4462]
[1725682029301,5.57782807,2241.9,2241.7,0.4462]
[1725682029559,8.78562807,2241.9,2241.7,0.4462]
[1725682029699,5.57782807,2241.9,2241.7,0.4462]
[1725682029900,8.78562807,2241.9,2241.7,0.4462]
[1725682030096,5.57782807,2241.9,2241.7,0.4462]
[1725682030303,8.78562807,2241.9,2241.7,0.4462]
[1725682030502,5.57782807,2241.9,2241.7,0.4462]
[1725682030704,8.78562807,2241.9,2241.7,0.4462]
[1725682031000,8.33945807,2241.9,2241.8,0.44618]
[1725682031301,0.3688,2241.9,2241.8,0.44618]
[1725682031604,0.81496,2241.9,2241.7,0.44618]
[1725682034010,1.89512,2242.1,2241.6,1.6654]
[1725682034011,1.22592,2242.1,2241.9,0.44616]
[1725682034208,0.383,2242.0,2241.9,0.44616]
[1725682034504,5.32853143,2242.0,2241.9,0.44616]
[1725682035107,4.94553143,2242.0,2241.9,0.44616]
[1725682035402,0.3955,2242.1,2242.0,0.44614]
[1725682036199,0.7389,2242.3,2241.9,0.389]
[1725682036497,5.75594416,2242.2,2242.1,0.44612]
[1725682036808,8.51764416,2242.2,2242.1,0.44612]
[1725682037010,5.30984416,2242.2,2242.1,0.44612]
[1725682038208,5.75595416,2242.2,2242.0,0.44614]
[1725682038406,3.2078,2242.1,2242.0,0.44614]
[1725682038605,3.2078,2242.1,2241.8,0.3694]
[1725682038797,3.65394,2242.1,2241.9,0.44615]
[1725682039002,3.65394,2242.1,2241.9,0.44616]
[1725682039003,0.44614,2242.0,2241.9,0.44616]
[1725682039708,3.65393,2242.1,2241.9,0.44616]
[1725682040726,0.44613,2242.1,2241.9,0.44616]
[1725682041805,3.65393,2242.1,2241.9,0.44616]
[1725682043714,3.2078,2242.1,2242.0,0.44614]
[1725682044412,0.83511,2242.2,2242.0,0.44614]
[1725682044606,0.44612,2242.1,2241.9,0.44614]
[1725682045730,3.65392,2242.1,2241.9,0.44614]
[1725682046812,0.46254589,2242.0,2241.9,0.44614]
[1725682047013,0.46254589,2242.0,2241.8,0.81556]
[1725682047322,1.1607,2241.9,2241.8,0.44616]
[1725682047910,1.1607,2241.9,2241.8,0.81596]
[1725682050112,1.17710707,2241.9,2241.6,1.6807]
[1725682050310,1.60687,2241.9,2241.7,0.3698]
[1725682051014,1.60687,2241.9,2241.7,0.816]
[1725682053111,0.44618,2241.8,2241.7,1.5398472]
[1725682054214,0.44618,2241.8,2241.7,0.3698]
[1725682054417,0.44618,2241.8,2241.7,1.5398472]
[1725682054723,0.44618,2241.8,2241.7,0.3698]
[1725682055318,0.44618,2241.8,2241.6,1.5607472]
[1725682055522,3.2078,2241.7,2241.4,1.1700472]
[1725682055716,0.44623,2241.6,2241.3,1.6163072]
[1725682055911,0.44623,2241.6,2241.3,2.9063072]
[1725682055912,0.84154,2241.5,2241.3,2.9063072]
[1725682056318,0.3953,2241.5,2241.3,2.9063072]
[1725682056527,0.3953,2241.5,2241.4,0.81856]
[1725682057823,0.3953,2241.5,2241.4,0.3723]
[1725682059223,6.1469,2241.5,2241.3,1.1700472]
[1725682059428,3.60181112,2241.4,2240.9,0.3633]
[1725682059624,0.44631,2241.2,2240.9,0.3633]
[1725682059831,3.2078,2241.0,2240.9,0.3633]
[1725682060025,0.3798,2241.1,2240.9,0.3633]
[1725682060229,3.6076,2241.0,2240.8,0.3649]
[1725682060526,3.9852,2241.0,2240.8,0.3649]
[1725682061730,0.7774,2241.0,2240.8,0.81127]
[1725682063837,0.7774,2241.0,2240.8,0.3649]
[1725682066444,4.90367198,2240.9,2240.4,1.73644]
[1725682066644,3.2078,2240.7,2240.4,2.09794]
[1725682066838,0.44638,2240.8,2240.4,2.09794]
[1725682067034,3.9789,2240.7,2240.4,2.09794]
[1725682067737,3.9789,2240.7,2240.5,0.44643]
[1725682068645,3.9789,2240.7,2240.6,0.44642]
[1725682069735,0.7711,2240.7,2240.6,0.44642]
[1725682070136,3.9789,2240.7,2240.6,0.44642]
[1725682070540,3.9789,2240.7,2240.5,0.44642]
[1725682070831,0.7711,2240.7,2240.6,0.44642]
[1725682071035,0.7711,2240.7,2240.5,0.44643]
[1725682072740,0.7711,2240.7,2240.6,0.44642]
[1725682073046,0.3865,2240.7,2240.6,1.73642]
[1725682080742,0.82406,2240.9,2240.6,1.73642]
[1725682081038,0.7498,2240.9,2240.7,0.44638]
[1725682081245,0.7498,2240.9,2240.7,1.22238]
[1725682087873,0.7498,2240.9,2240.8,0.44638]
[1725682088054,0.7593,2241.2,2241.1,0.44632]
[1725682089155,0.7593,2241.2,2241.0,0.81783]
[1725682092165,3.9671,2241.2,2241.0,0.81783]
[1725682092549,0.7593,2241.2,2241.0,0.81783]
[1725682092859,3.9671,2241.2,2241.0,0.81783]
[1725682095659,1.5108161,2241.4,2241.3,0.44628]
[1725682095660,0.2208161,2241.4,2241.3,0.44628]
[1725682095865,0.7506,2241.5,2241.3,0.44628]
[1725682096365,0.7506,2241.5,2241.4,0.3808]
[1725682103873,0.44629,2241.3,2241.1,0.3669]
[1725682104061,0.7593,2241.2,2241.1,0.44632]
[1725682106804,1.2056,2241.2,2241.0,1.9782772]
[1725682106864,0.3954,2241.1,2241.0,1.9782772]
[1725682107064,0.3954,2241.1,2241.0,0.80823]
[1725682111665,0.3954,2241.1,2241.0,1.9782772]
[1725682112169,0.7593,2241.2,2241.1,0.44632]
[1725682112572,0.3734,2241.2,2241.0,1.9782672]
[1725682113417,0.3734,2241.2,2241.0,0.80822]
[1725682117080,0.8197,2241.2,2241.0,0.80822]
[1725682117269,0.3734,2241.2,2241.0,0.80822]
[1725682118790,0.3644,2241.5,2241.4,0.44626]
[1725682118979,0.84002,2241.6,2241.4,0.44626]
[1725682119171,0.3938,2241.6,2241.3,0.44626]
[1725682119370,0.3938,2241.6,2241.3,0.84236]
[1725682119572,0.84002,2241.6,2241.3,0.84236]
[1725682120372,0.3644,2241.7,2241.4,1.1700472]
[1725682120586,0.3644,2241.7,2241.5,1.5347472]
[1725682120876,0.3644,2241.7,2241.6,0.3981]
[1725682121074,0.3644,2241.7,2241.6,1.24192]
[1725682122374,3.65398,2241.8,2241.6,1.24192]
[1725682125786,0.4462,2241.7,2241.6,0.7957]
[1725682127281,0.44619,2241.8,2241.6,1.24191]
[1725682127787,2.4747,2241.9,2241.6,0.7957]
[1725682127974,0.44619,2241.8,2241.6,0.7957]
[1725682128178,0.44619,2241.8,2241.6,1.24191]
[1725682128384,0.44619,2241.8,2241.6,0.7957]
[1725682129483,1.63087,2241.9,2241.6,1.2419]
[1725682129787,0.44618,2241.8,2241.6,1.24191]
[1725682131081,0.44618,2241.8,2241.6,0.3976]
[1725682131281,0.44618,2241.8,2241.5,1.73622]
[1725682132288,0.44618,2241.8,2241.5,2.9062672]
[1725682132490,0.44621,2241.7,2241.5,2.9062672]
[1725682132993,0.363,2241.6,2241.5,2.9062672]
[1725682135487,0.363,2241.6,2241.5,1.73622]
[1725682140385,0.363,2241.6,2241.5,0.44622]
[1725682140582,0.363,2241.6,2241.4,0.44624]
[1725682140583,0.80922,2241.6,2241.4,0.44624]
[1725682140785,0.44624,2241.5,2241.3,4.80367]
[1725682140983,1.17614,2241.5,2241.3,4.80367]
[1725682141183,0.44626,2241.4,2241.3,4.40437]
[1725682141400,0.44626,2241.4,2241.3,3.9581]
[1725682141787,0.44626,2241.4,2241.3,4.40438]
[1725682141985,0.44626,2241.4,2241.3,8.86598]
[1725682142289,0.44626,2241.4,2241.3,3.9581]
[1725682142488,0.44626,2241.4,2241.3,3.5763]
[1725682143691,0.44626,2241.4,2241.3,4.7463472]
[1725682143889,0.44626,2241.4,2241.3,5.1926272]
[1725682144092,0.44626,2241.4,2241.3,4.7463472]
[1725682144289,0.44626,2241.4,2241.3,5.1926272]
[1725682145192,0.44626,2241.4,2241.3,1.9848272]
[1725682145392,0.44626,2241.4,2241.3,0.81478]
[1725682145699,0.44626,2241.4,2241.3,1.9848272]
[1725682147290,0.44626,2241.4,2241.3,0.81478]
[1725682147594,0.44626,2241.4,2241.3,1.9848272]
[1725682147999,0.44626,2241.4,2241.3,0.3685]
[1725682149395,1.17615,2241.5,2241.3,0.3685]
[1725682149598,3.2078,2241.7,2241.6,0.44622]
[1725682150497,3.2078,2241.7,2241.6,0.83032]
[1725682150693,1.14875963,2242.1,2242.0,0.44614]
[1725682150995,0.44612,2242.1,2241.9,0.44615]
[1725682151196,0.67276249,2242.1,2242.0,0.754]
[1725682154208,0.22664249,2242.1,2242.0,1.20014]
[1725682159313,0.44611,2242.2,2242.0,1.20014]
[1725682159807,3.2078,2242.5,2242.0,0.754]
[1725682160010,0.44605,2242.5,2242.3,0.44607]
[1725682160314,0.44605,2242.5,2242.4,0.3921]
[1725682160611,0.83627,2242.4,2242.2,0.83819]
[1725682161204,0.3902,2242.4,2242.2,0.3921]
[1725682161706,0.3902,2242.4,2242.3,0.44608]
[1725682163107,0.83626,2242.4,2242.2,0.83818]
[1725682163311,0.3902,2242.4,2242.3,0.44608]
[1725682165110,0.44604,2242.5,2242.4,0.44606]
[1725682165508,2.88583,2242.6,2242.4,0.44606]
[1725682165913,0.44604,2242.5,2242.3,0.84446]
[1725682166307,0.44604,2242.5,2242.3,0.44606]
[1725682168619,5.14087526,2242.4,2242.3,0.44606]
[1725682168919,5.47297288,2242.5,2242.3,0.44606]
[1725682169318,0.44605,2242.5,2242.3,0.44606]
[1725682170618,0.44605,2242.5,2242.4,0.3979]
[1725682176325,1.59583,2242.6,2242.4,0.3979]
[1725682179417,1.65076169,2243.0,2242.6,0.44602]
[1725682179725,3.21154189,2243.3,2242.8,1.29]
[1725682180026,3.21154189,2243.3,2242.9,0.3903]
[1725682180027,1.67811001,2243.2,2242.9,0.3903]
[1725682180230,0.44592,2243.1,2242.9,0.3903]
[1725682180427,5.97398134,2243.1,2242.7,0.3996]
[1725682180623,0.44602,2242.7,2242.5,0.3903]
[1725682180922,1.23142,2242.6,2242.4,0.84565]
[1725682181124,1.62162,2242.6,2242.4,0.84565]
[1725682182627,1.62162,2242.6,2242.4,0.84566]
[1725682186624,1.62162,2242.6,2242.5,0.44604]
[1725682186830,1.1756,2242.6,2242.5,0.44604]
[1725682187331,0.3872,2242.6,2242.5,0.44604]
[1725682187629,0.44601,2242.7,2242.5,0.44604]
[1725682187834,0.80761,2242.7,2242.5,0.44604]
[1725682188025,0.80761,2242.7,2242.4,0.84564]
[1725682189424,0.80761,2242.7,2242.5,0.44603]
[1725682191836,0.44602,2242.6,2242.4,0.84565]
[1725682192133,0.44602,2242.6,2242.4,0.3996]
[1725682192336,0.7508,2242.5,2242.4,0.3996]
[1725682193134,0.7508,2242.5,2242.4,0.84566]
[1725682195630,0.44602,2242.6,2242.4,0.84566]
[1725682200639,0.44602,2242.6,2242.5,0.44604]
[1725682201040,1.57241,2242.7,2242.5,0.44604]
[1725682201551,1.1264,2242.7,2242.6,0.44602]
[1725682202741,0.3616,2242.7,2242.6,0.44602]
[1725682202948,0.3616,2242.7,2242.6,0.80892]
[1725682207146,3.2078,2242.8,2242.7,0.446]
[1725682207346,3.2078,2242.8,2242.7,0.8403]
[1725682207546,3.2078,2242.8,2242.7,1.2137]
[1725682211048,0.3812,2242.9,2242.8,0.44598]
[1725682216655,0.44598,2242.8,2242.7,0.3734]
[1725682216961,0.44598,2242.8,2242.7,0.8194]
[1725682217261,0.44598,2242.8,2242.7,0.3734]
[1725682217453,0.44598,2242.8,2242.7,0.8194]
[1725682217649,0.44598,2242.8,2242.7,0.446]
[1725682218958,0.446,2242.7,2242.6,1.1700472]
[1725682219158,0.446,2242.7,2242.5,1.6160672]
[1725682219361,0.7315,2242.6,2242.5,1.6160672]
[1725682219860,0.7315,2242.6,2242.5,6.0752672]
[1725682220852,1.17752,2242.6,2242.5,1.1700472]
[1725682221052,1.54842,2242.6,2242.4,2.0117972]
[1725682222659,1.1024,2242.6,2242.5,0.44604]
[1725682223257,1.54843,2242.6,2242.4,2.0117972]
[1725682223854,1.54843,2242.6,2242.5,0.44604]
[1725682224756,1.54843,2242.6,2242.5,1.6160872]
[1725682225065,1.54843,2242.6,2242.5,0.44604]
[1725682226763,1.1024,2242.6,2242.5,0.44604]
[1725682227062,1.54842,2242.6,2242.4,0.84175]
[1725682229653,1.54842,2242.6,2242.4,0.84174]
[1725682229862,1.1024,2242.6,2242.5,0.44604]
[1725682230056,0.7315,2242.6,2242.5,0.84054]
[1725682230865,0.3849,2242.8,2242.5,0.3945]
[1725682231065,0.446,2242.7,2242.5,0.84053]
[1725682231266,1.1579,2242.8,2242.7,0.446]
[1725682231453,3.65376,2242.9,2242.7,0.446]
[1725682231853,3.65376,2242.9,2242.8,0.3909]
[1725682234364,0.44596,2242.9,2242.8,0.3909]
[1725682234860,0.82296,2242.9,2242.8,0.3909]
[1725682235172,0.44598,2242.8,2242.7,1.1700472]
[1725682235364,1.21278,2242.8,2242.6,1.6160572]
[1725682235765,1.21278,2242.8,2242.6,1.1700472]